[Event "Early-Titled-Tuesday-Blitz-March-05-2024"]
[Site "Chess.com"]
[Date "2024.03.05"]
[Round "5"]
[White "eagleclaw07"]
[Black "kleopl"]
[Result "1-0"]
[WhiteElo "2842"]
[BlackElo "2523"]
[TimeControl "180+1"]
[EndTime "8:58:47 PST"]
[Termination "eagleclaw07 won on time"]

1. d4 {[%clk 0:01:59.7]} 1... Nf6 {[%clk 0:02:58.3]} 2. c4 {[%clk 0:01:57.7]}
2... e6 {[%clk 0:02:57.7]} 3. g3 {[%clk 0:01:58.2]} 3... c5 {[%clk 0:02:55.7]}
4. d5 {[%clk 0:01:58.2]} 4... exd5 {[%clk 0:02:53.5]} 5. cxd5 {[%clk 0:01:59.1]}
5... b5 {[%clk 0:02:50.6]} 6. e4 {[%clk 0:01:58.4]} 6... d6 {[%clk 0:02:50.6]}
7. Bxb5+ {[%clk 0:01:58.2]} 7... Bd7 {[%clk 0:02:48.9]} 8. Bxd7+ {[%clk
0:01:53.8]} 8... Nbxd7 {[%clk 0:02:47.6]} 9. Nc3 {[%clk 0:01:54.7]} 9... g6
{[%clk 0:02:46.5]} 10. Nf3 {[%clk 0:01:54.2]} 10... Bg7 {[%clk 0:02:46.3]} 11.
O-O {[%clk 0:01:55]} 11... O-O {[%clk 0:02:46.5]} 12. Bf4 {[%clk 0:01:54.1]}
12... Nb6 {[%clk 0:02:42.7]} 13. Nd2 {[%clk 0:01:32]} 13... Re8 {[%clk
0:02:40.7]} 14. Qc2 {[%clk 0:01:28.7]} 14... a6 {[%clk 0:02:34.6]} 15. Kg2
{[%clk 0:01:28.7]} 15... Rb8 {[%clk 0:02:32.7]} 16. Rfe1 {[%clk 0:01:27.8]}
16... Nh5 {[%clk 0:02:28.3]} 17. Be3 {[%clk 0:01:27.7]} 17... Qd7 {[%clk
0:02:20.9]} 18. Re2 {[%clk 0:01:12.6]} 18... Qb7 {[%clk 0:02:15.8]} 19. Rae1
{[%clk 0:01:10.5]} 19... Nd7 {[%clk 0:02:07.7]} 20. Nc4 {[%clk 0:01:09.5]} 20...
Bf8 {[%clk 0:01:58.8]} 21. f4 {[%clk 0:01:05.1]} 21... Nhf6 {[%clk 0:01:55.7]}
22. h3 {[%clk 0:00:57.7]} 22... Nb6 {[%clk 0:01:48.7]} 23. Nd2 {[%clk
0:00:49.9]} 23... Bg7 {[%clk 0:01:39.8]} 24. Bf2 {[%clk 0:00:49.9]} 24... Re7
{[%clk 0:01:34.5]} 25. Kh2 {[%clk 0:00:48.9]} 25... Rbe8 {[%clk 0:01:33.3]} 26.
a4 {[%clk 0:00:48.2]} 26... Nc8 {[%clk 0:01:28.6]} 27. Nc4 {[%clk 0:00:48]}
27... Qb4 {[%clk 0:01:22.9]} 28. Qd3 {[%clk 0:00:42.4]} 28... Nd7 {[%clk
0:01:12.9]} 29. Be3 {[%clk 0:00:17.9]} 29... Ndb6 {[%clk 0:01:10.7]} 30. Nxb6
{[%clk 0:00:15.5]} 30... Qxb6 {[%clk 0:01:11.6]} 31. Bc1 {[%clk 0:00:12.9]}
31... Qa5 {[%clk 0:01:02.7]} 32. Qf3 {[%clk 0:00:12.9]} 32... Nb6 {[%clk
0:01:01.2]} 33. e5 {[%clk 0:00:11.4]} 33... dxe5 {[%clk 0:00:53.8]} 34. f5
{[%clk 0:00:12.1]} 34... f6 {[%clk 0:00:31.5]} 35. Rd1 {[%clk 0:00:06.7]} 35...
Nxa4 {[%clk 0:00:27.7]} 36. d6 {[%clk 0:00:06.8]} 36... Nxc3 {[%clk 0:00:23.8]}
37. bxc3 {[%clk 0:00:02.6]} 37... Rd7 {[%clk 0:00:18.5]} 38. Rb2 {[%clk
0:00:02.6]} 38... Qd8 {[%clk 0:00:16.9]} 39. Qc6 {[%clk 0:00:02.9]} 39... gxf5
{[%clk 0:00:14.4]} 40. Rb7 {[%clk 0:00:03.2]} 40... Rxb7 {[%clk 0:00:13.3]} 41.
Qxb7 {[%clk 0:00:04.1]} 41... f4 {[%clk 0:00:10.6]} 42. gxf4 {[%clk 0:00:03.1]}
42... exf4 {[%clk 0:00:11.5]} 43. Bxf4 {[%clk 0:00:03.6]} 43... Re2+ {[%clk
0:00:09.7]} 44. Kh1 {[%clk 0:00:04.2]} 44... Rf2 {[%clk 0:00:05.1]} 45. Bg3
{[%clk 0:00:04]} 45... Re2 {[%clk 0:00:03.6]} 46. d7 {[%clk 0:00:04.5]} 46...
Bf8 {[%clk 0:00:02.3]} 47. Qd5+ {[%clk 0:00:03.6]} 47... Kg7 {[%clk 0:00:02.1]}
48. Bf4 {[%clk 0:00:04]} 48... Be7 {[%clk 0:00:01.4]} 49. Rg1+ {[%clk
0:00:04.6]} 1-0

[Event "Early-Titled-Tuesday-Blitz-March-05-2024"]
[Site "Chess.com"]
[Date "2024.03.05"]
[Round "5"]
[White "PepeCuenca"]
[Black "Chopper1905"]
[Result "0-1"]
[WhiteElo "2693"]
[BlackElo "2948"]
[TimeControl "180+1"]
[EndTime "8:58:48 PST"]
[Termination "Chopper1905 won on time"]

1. d4 {[%clk 0:03:00.9]} 1... Nf6 {[%clk 0:02:56.8]} 2. Bf4 {[%clk 0:03:00.9]}
2... d6 {[%clk 0:02:56.5]} 3. Nc3 {[%clk 0:02:59]} 3... Nbd7 {[%clk 0:02:56.2]}
4. Nf3 {[%clk 0:02:59.1]} 4... c5 {[%clk 0:02:56.2]} 5. d5 {[%clk 0:02:55.3]}
5... Qa5 {[%clk 0:02:54]} 6. Nd2 {[%clk 0:02:54.6]} 6... b5 {[%clk 0:02:47.6]}
7. e4 {[%clk 0:02:54.1]} 7... b4 {[%clk 0:02:38]} 8. Ncb1 {[%clk 0:02:42.1]}
8... g6 {[%clk 0:02:27.4]} 9. a4 {[%clk 0:02:38.3]} 9... Bg7 {[%clk 0:02:09.2]}
10. Nc4 {[%clk 0:02:29.1]} 10... Qd8 {[%clk 0:02:06.6]} 11. Nbd2 {[%clk
0:02:29.6]} 11... Nb6 {[%clk 0:02:01.5]} 12. Nxb6 {[%clk 0:01:56.2]} 12... axb6
{[%clk 0:02:01.6]} 13. Bb5+ {[%clk 0:01:54.9]} 13... Bd7 {[%clk 0:01:58.2]} 14.
Bxd7+ {[%clk 0:01:44.8]} 14... Qxd7 {[%clk 0:01:55.2]} 15. Nc4 {[%clk
0:01:33.3]} 15... Rxa4 {[%clk 0:01:15.4]} 16. Nxb6 {[%clk 0:01:24.4]} 16... Rxa1
{[%clk 0:01:15.5]} 17. Qxa1 {[%clk 0:01:24.4]} 17... Qb7 {[%clk 0:01:12]} 18.
Qa4+ {[%clk 0:01:18.2]} 18... Kf8 {[%clk 0:01:11.2]} 19. Qc6 {[%clk 0:01:11.9]}
19... Qxc6 {[%clk 0:00:19.4]} 20. dxc6 {[%clk 0:01:12.2]} 20... Ne8 {[%clk
0:00:20.3]} 21. Nd5 {[%clk 0:00:47.9]} 21... Bxb2 {[%clk 0:00:20.3]} 22. Bh6+
{[%clk 0:00:22.3]} 22... Bg7 {[%clk 0:00:19.6]} 23. Bxg7+ {[%clk 0:00:22]} 23...
Kxg7 {[%clk 0:00:20.5]} 24. c7 {[%clk 0:00:22.4]} 24... Nxc7 {[%clk 0:00:15.4]}
25. Nxc7 {[%clk 0:00:23.3]} 25... Rc8 {[%clk 0:00:09.2]} 26. Nd5 {[%clk
0:00:23.3]} 26... Ra8 {[%clk 0:00:09]} 27. Kd2 {[%clk 0:00:18.5]} 27... Kf8
{[%clk 0:00:06.9]} 28. h4 {[%clk 0:00:16.1]} 28... h5 {[%clk 0:00:07]} 29. Ne3
{[%clk 0:00:13.2]} 29... e6 {[%clk 0:00:06.1]} 30. Nc4 {[%clk 0:00:07.6]} 30...
Ke7 {[%clk 0:00:06.3]} 31. Ne3 {[%clk 0:00:06.5]} 31... f5 {[%clk 0:00:06]} 32.
exf5 {[%clk 0:00:05.8]} 32... gxf5 {[%clk 0:00:06.9]} 33. g3 {[%clk 0:00:06.4]}
33... Ra2 {[%clk 0:00:06.6]} 34. Rb1 {[%clk 0:00:05.8]} 34... d5 {[%clk
0:00:06.8]} 35. Ng2 {[%clk 0:00:04.5]} 35... e5 {[%clk 0:00:06.3]} 36. f4 {[%clk
0:00:03.4]} 36... e4 {[%clk 0:00:06.1]} 37. Ne3 {[%clk 0:00:03.4]} 37... Ke6
{[%clk 0:00:06.7]} 38. Nd1 {[%clk 0:00:03.8]} 38... d4 {[%clk 0:00:06.5]} 39.
Rb2 {[%clk 0:00:02.4]} 39... Ra1 {[%clk 0:00:06.6]} 40. Rb3 {[%clk 0:00:03]}
40... Kd5 {[%clk 0:00:06.2]} 41. Rb2 {[%clk 0:00:03.1]} 41... Ra3 {[%clk
0:00:03.5]} 42. Rb3 {[%clk 0:00:03.3]} 42... Ra4 {[%clk 0:00:03.6]} 43. Rb2
{[%clk 0:00:02.7]} 43... c4 {[%clk 0:00:04]} 44. Rb1 {[%clk 0:00:03.1]} 44...
c3+ {[%clk 0:00:04.4]} 45. Kc1 {[%clk 0:00:02.9]} 45... Kc4 {[%clk 0:00:04.6]}
46. Nf2 {[%clk 0:00:03]} 46... Ra2 {[%clk 0:00:05.1]} 47. Kd1 {[%clk 0:00:03.3]}
47... d3 {[%clk 0:00:05.2]} 48. cxd3+ {[%clk 0:00:02.4]} 48... exd3 {[%clk
0:00:06.1]} 49. Rc1 {[%clk 0:00:02]} 49... Rxf2 {[%clk 0:00:05.7]} 0-1

[Event "Early-Titled-Tuesday-Blitz-March-05-2024"]
[Site "Chess.com"]
[Date "2024.03.05"]
[Round "5"]
[White "Hui_Li_Macau"]
[Black "ninguno46"]
[Result "0-1"]
[WhiteElo "2383"]
[BlackElo "2534"]
[TimeControl "180+1"]
[EndTime "8:58:49 PST"]
[Termination "ninguno46 won on time"]

1. e4 {[%clk 0:03:00.9]} 1... c5 {[%clk 0:02:59.7]} 2. Nf3 {[%clk 0:03:01]} 2...
Nc6 {[%clk 0:03:00]} 3. d4 {[%clk 0:03:01.5]} 3... cxd4 {[%clk 0:03:00.2]} 4.
Nxd4 {[%clk 0:03:02.4]} 4... g6 {[%clk 0:03:00.4]} 5. Nc3 {[%clk 0:03:02.6]}
5... Bg7 {[%clk 0:03:00]} 6. Be3 {[%clk 0:03:03.2]} 6... Nf6 {[%clk 0:02:59.8]}
7. Bc4 {[%clk 0:03:03.6]} 7... Qa5 {[%clk 0:02:59.7]} 8. O-O {[%clk 0:02:59.5]}
8... O-O {[%clk 0:02:59]} 9. Bb3 {[%clk 0:02:59.4]} 9... d6 {[%clk 0:02:58.7]}
10. h3 {[%clk 0:02:58.6]} 10... Bd7 {[%clk 0:02:58.8]} 11. Re1 {[%clk
0:02:58.7]} 11... Rac8 {[%clk 0:02:58.8]} 12. Nf3 {[%clk 0:02:58]} 12... Rfe8
{[%clk 0:02:47.3]} 13. Qe2 {[%clk 0:01:30.7]} 13... Ne5 {[%clk 0:02:07.6]} 14.
Nxe5 {[%clk 0:01:24.1]} 14... dxe5 {[%clk 0:02:07.1]} 15. Rad1 {[%clk 0:01:08]}
15... Bc6 {[%clk 0:02:02.3]} 16. f3 {[%clk 0:01:08.1]} 16... e6 {[%clk
0:01:59.3]} 17. Qf2 {[%clk 0:00:55.5]} 17... b6 {[%clk 0:01:56]} 18. Bd2 {[%clk
0:00:51.7]} 18... Qa6 {[%clk 0:01:55]} 19. Be3 {[%clk 0:00:45.8]} 19... Nh5
{[%clk 0:01:53.1]} 20. Rd6 {[%clk 0:00:31]} 20... Bf8 {[%clk 0:01:46.1]} 21. Rd2
{[%clk 0:00:29.6]} 21... Nf4 {[%clk 0:01:38.9]} 22. Ne2 {[%clk 0:00:23.9]} 22...
Nxe2+ {[%clk 0:01:30]} 23. Rexe2 {[%clk 0:00:23.8]} 23... Bb5 {[%clk 0:01:27.6]}
24. Re1 {[%clk 0:00:23.8]} 24... Bc6 {[%clk 0:01:15.6]} 25. Qh4 {[%clk
0:00:18.6]} 25... Qb7 {[%clk 0:01:09.8]} 26. Bg5 {[%clk 0:00:17.4]} 26... a5
{[%clk 0:01:02.2]} 27. a3 {[%clk 0:00:10.7]} 27... b5 {[%clk 0:00:59.5]} 28. Bf6
{[%clk 0:00:08.3]} 28... Bg7 {[%clk 0:00:58.5]} 29. Bxg7 {[%clk 0:00:06.4]}
29... Kxg7 {[%clk 0:00:58.5]} 30. Qg3 {[%clk 0:00:06.7]} 30... f6 {[%clk
0:00:56.4]} 31. Red1 {[%clk 0:00:06.5]} 31... Re7 {[%clk 0:00:52.9]} 32. h4
{[%clk 0:00:06.6]} 32... h5 {[%clk 0:00:49.4]} 33. Kh2 {[%clk 0:00:05.6]} 33...
a4 {[%clk 0:00:45.8]} 34. Ba2 {[%clk 0:00:05.5]} 34... b4 {[%clk 0:00:46]} 35.
axb4 {[%clk 0:00:03.9]} 35... Qxb4 {[%clk 0:00:46.1]} 36. c3 {[%clk 0:00:04.3]}
36... Qc5 {[%clk 0:00:43.6]} 37. Qf2 {[%clk 0:00:04.2]} 37... Qxf2 {[%clk
0:00:40.6]} 38. Rxf2 {[%clk 0:00:05.1]} 38... Be8 {[%clk 0:00:40]} 39. Rfd2
{[%clk 0:00:05.2]} 39... Rb8 {[%clk 0:00:39.3]} 40. Bc4 {[%clk 0:00:04.3]} 40...
Rb6 {[%clk 0:00:38.7]} 41. Ba2 {[%clk 0:00:04.1]} 41... f5 {[%clk 0:00:38.2]}
42. Kg1 {[%clk 0:00:03.2]} 42... Bf7 {[%clk 0:00:34.7]} 43. Kf2 {[%clk
0:00:03.2]} 43... Kf6 {[%clk 0:00:34.1]} 44. Ke3 {[%clk 0:00:03.5]} 44... Reb7
{[%clk 0:00:33.2]} 45. g3 {[%clk 0:00:01.3]} 45... Rxb2 {[%clk 0:00:31.6]} 46.
Rxb2 {[%clk 0:00:01.5]} 46... Rxb2 {[%clk 0:00:31.5]} 47. Rd2 {[%clk 0:00:02.1]}
47... f4+ {[%clk 0:00:26.3]} 48. gxf4 {[%clk 0:00:01.5]} 48... exf4+ {[%clk
0:00:26.3]} 49. Ke2 {[%clk 0:00:01.2]} 49... Rxd2+ {[%clk 0:00:21.8]} 50. Kxd2
{[%clk 0:00:02.1]} 50... e5 {[%clk 0:00:22.2]} 51. Bb1 {[%clk 0:00:01.1]} 51...
a3 {[%clk 0:00:21.7]} 0-1

[Event "Early-Titled-Tuesday-Blitz-March-05-2024"]
[Site "Chess.com"]
[Date "2024.03.05"]
[Round "5"]
[White "AlexTruskavetsky"]
[Black "evgchess5"]
[Result "1-0"]
[WhiteElo "2707"]
[BlackElo "2926"]
[TimeControl "180+1"]
[EndTime "8:58:51 PST"]
[Termination "AlexTruskavetsky won on time"]

1. e4 {[%clk 0:02:58.6]} 1... c5 {[%clk 0:02:58.8]} 2. Nf3 {[%clk 0:02:54.1]}
2... e6 {[%clk 0:02:58.6]} 3. c3 {[%clk 0:02:53.4]} 3... d5 {[%clk 0:02:57.5]}
4. exd5 {[%clk 0:02:53.6]} 4... Qxd5 {[%clk 0:02:58]} 5. d4 {[%clk 0:02:54.1]}
5... Nf6 {[%clk 0:02:58.6]} 6. Bd3 {[%clk 0:02:52]} 6... Be7 {[%clk 0:02:57.5]}
7. O-O {[%clk 0:02:52.2]} 7... O-O {[%clk 0:02:57.4]} 8. Qe2 {[%clk 0:02:50.7]}
8... Nbd7 {[%clk 0:02:54.3]} 9. Rd1 {[%clk 0:02:50.4]} 9... cxd4 {[%clk
0:02:28.7]} 10. Nxd4 {[%clk 0:02:46.7]} 10... a6 {[%clk 0:02:06.2]} 11. Bc2
{[%clk 0:02:43.1]} 11... Qh5 {[%clk 0:02:00.4]} 12. Qxh5 {[%clk 0:02:31.7]}
12... Nxh5 {[%clk 0:02:00.1]} 13. Nd2 {[%clk 0:02:32.5]} 13... Rd8 {[%clk
0:01:57.3]} 14. N2f3 {[%clk 0:02:31.5]} 14... Nb6 {[%clk 0:01:48.8]} 15. Bg5
{[%clk 0:02:06.9]} 15... Nf6 {[%clk 0:01:31.1]} 16. Bb3 {[%clk 0:02:00.7]} 16...
Bd7 {[%clk 0:01:28.6]} 17. Ne5 {[%clk 0:01:55.3]} 17... Be8 {[%clk 0:01:28.6]}
18. Ng4 {[%clk 0:01:44.4]} 18... Nfd5 {[%clk 0:01:19.1]} 19. Bxe7 {[%clk
0:01:41.4]} 19... Nxe7 {[%clk 0:01:19.1]} 20. Ne3 {[%clk 0:01:40.8]} 20... Rac8
{[%clk 0:01:16.1]} 21. Nxe6 {[%clk 0:01:26.8]} 21... fxe6 {[%clk 0:01:15.6]} 22.
Bxe6+ {[%clk 0:01:27.7]} 22... Kf8 {[%clk 0:01:08.4]} 23. Bxc8 {[%clk
0:01:27.9]} 23... Rxc8 {[%clk 0:01:09.1]} 24. Rd2 {[%clk 0:01:25.6]} 24... Bf7
{[%clk 0:01:02.3]} 25. a4 {[%clk 0:01:11.6]} 25... Be6 {[%clk 0:00:52.9]} 26.
Rd6 {[%clk 0:01:06.6]} 26... Rc6 {[%clk 0:00:52.7]} 27. Rxc6 {[%clk 0:00:58]}
27... Nxc6 {[%clk 0:00:52.4]} 28. b4 {[%clk 0:00:58.4]} 28... Ke7 {[%clk
0:00:42]} 29. a5 {[%clk 0:00:54.9]} 29... Nc4 {[%clk 0:00:32.8]} 30. Nxc4 {[%clk
0:00:54.9]} 30... Bxc4 {[%clk 0:00:33.5]} 31. Rd1 {[%clk 0:00:55]} 31... Ke6
{[%clk 0:00:30.8]} 32. f3 {[%clk 0:00:51.2]} 32... Ne7 {[%clk 0:00:30.4]} 33.
Rd4 {[%clk 0:00:51]} 33... Bb3 {[%clk 0:00:29]} 34. Kf2 {[%clk 0:00:22]} 34...
Nd5 {[%clk 0:00:29]} 35. Ke1 {[%clk 0:00:20.6]} 35... Bc2 {[%clk 0:00:23.7]} 36.
Kd2 {[%clk 0:00:20.9]} 36... Bg6 {[%clk 0:00:23.8]} 37. h4 {[%clk 0:00:20.6]}
37... h5 {[%clk 0:00:22.8]} 38. Rc4 {[%clk 0:00:20.5]} 38... Kd7 {[%clk
0:00:19.7]} 39. Rc5 {[%clk 0:00:19.9]} 39... Bf7 {[%clk 0:00:19.8]} 40. g4
{[%clk 0:00:19.5]} 40... g6 {[%clk 0:00:19.1]} 41. Rc4 {[%clk 0:00:18.4]} 41...
Be6 {[%clk 0:00:15.3]} 42. Re4 {[%clk 0:00:16.6]} 42... Kd6 {[%clk 0:00:14.4]}
43. gxh5 {[%clk 0:00:15]} 43... gxh5 {[%clk 0:00:13.7]} 44. c4 {[%clk
0:00:15.4]} 44... Ne7 {[%clk 0:00:11.2]} 45. Kc3 {[%clk 0:00:14.7]} 45... Ng6
{[%clk 0:00:09.8]} 46. b5 {[%clk 0:00:14.4]} 46... Bf5 {[%clk 0:00:07.2]} 47.
Rd4+ {[%clk 0:00:14.8]} 47... Ke6 {[%clk 0:00:05.4]} 48. bxa6 {[%clk 0:00:14.5]}
48... bxa6 {[%clk 0:00:05.9]} 49. c5 {[%clk 0:00:13.5]} 49... Ke7 {[%clk
0:00:06.1]} 50. c6 {[%clk 0:00:11.9]} 50... Ne5 {[%clk 0:00:05.4]} 51. c7 {[%clk
0:00:12.5]} 51... Be6 {[%clk 0:00:02.5]} 52. Re4 {[%clk 0:00:12.6]} 52... Kd6
{[%clk 0:00:01.6]} 53. f4 {[%clk 0:00:13.1]} 1-0

[Event "Early-Titled-Tuesday-Blitz-March-05-2024"]
[Site "Chess.com"]
[Date "2024.03.05"]
[Round "5"]
[White "profedechess93"]
[Black "maciek_92"]
[Result "0-1"]
[WhiteElo "2647"]
[BlackElo "2877"]
[TimeControl "180+1"]
[EndTime "8:58:51 PST"]
[Termination "maciek_92 won on time"]

1. e4 {[%clk 0:03:00.9]} 1... c5 {[%clk 0:02:58.9]} 2. Nf3 {[%clk 0:03:00.7]}
2... e6 {[%clk 0:02:58.9]} 3. d4 {[%clk 0:03:00.2]} 3... cxd4 {[%clk 0:02:59.8]}
4. Nxd4 {[%clk 0:03:00.8]} 4... Nc6 {[%clk 0:03:00.3]} 5. Nc3 {[%clk 0:03:00.9]}
5... a6 {[%clk 0:03:00.7]} 6. Nxc6 {[%clk 0:02:59.4]} 6... bxc6 {[%clk
0:02:59.5]} 7. e5 {[%clk 0:02:59.9]} 7... Qc7 {[%clk 0:02:58.6]} 8. f4 {[%clk
0:02:59.9]} 8... d5 {[%clk 0:02:58.3]} 9. exd6 {[%clk 0:02:59.3]} 9... Bxd6
{[%clk 0:02:58.9]} 10. Ne4 {[%clk 0:02:59.2]} 10... Be7 {[%clk 0:02:59.6]} 11.
Qf3 {[%clk 0:02:53.4]} 11... Nf6 {[%clk 0:02:55.2]} 12. Bd3 {[%clk 0:02:49.7]}
12... O-O {[%clk 0:02:37.4]} 13. O-O {[%clk 0:02:47]} 13... Rb8 {[%clk
0:02:37.2]} 14. Kh1 {[%clk 0:02:32.3]} 14... c5 {[%clk 0:02:34.8]} 15. f5 {[%clk
0:02:01.5]} 15... c4 {[%clk 0:02:22.1]} 16. Nxf6+ {[%clk 0:01:55.5]} 16... Bxf6
{[%clk 0:02:22.3]} 17. Be4 {[%clk 0:01:54.2]} 17... exf5 {[%clk 0:02:01.1]} 18.
Bxf5 {[%clk 0:01:25.2]} 18... Bxf5 {[%clk 0:01:35]} 19. Qxf5 {[%clk 0:01:26.1]}
19... Bxb2 {[%clk 0:01:35.2]} 20. Bf4 {[%clk 0:01:05.3]} 20... Qc6 {[%clk
0:01:30.3]} 21. Rad1 {[%clk 0:00:32.4]} 21... Rb5 {[%clk 0:00:59.5]} 22. Qg4
{[%clk 0:00:29]} 22... Rd5 {[%clk 0:00:43.9]} 23. Rde1 {[%clk 0:00:24]} 23...
Qd7 {[%clk 0:00:28.7]} 24. Qf3 {[%clk 0:00:23.6]} 24... Bf6 {[%clk 0:00:23.2]}
25. Re4 {[%clk 0:00:18.6]} 25... c3 {[%clk 0:00:22.4]} 26. Rfe1 {[%clk 0:00:19]}
26... Rd8 {[%clk 0:00:16.3]} 27. h3 {[%clk 0:00:18.8]} 27... h5 {[%clk
0:00:15.2]} 28. Bg3 {[%clk 0:00:16.6]} 28... Qf5 {[%clk 0:00:14.6]} 29. Qe2
{[%clk 0:00:12.6]} 29... g6 {[%clk 0:00:14.3]} 30. Rf4 {[%clk 0:00:10.6]} 30...
Qg5 {[%clk 0:00:10.5]} 31. Qf3 {[%clk 0:00:08.6]} 31... Rf5 {[%clk 0:00:09.2]}
32. Rf1 {[%clk 0:00:06.8]} 32... Rxf4 {[%clk 0:00:08.3]} 33. Bxf4 {[%clk
0:00:07.7]} 33... Qf5 {[%clk 0:00:08.4]} 34. Qe2 {[%clk 0:00:06.2]} 34... Qe6
{[%clk 0:00:05.5]} 35. Qf3 {[%clk 0:00:04.2]} 35... Re8 {[%clk 0:00:03.7]} 36.
Bg3 {[%clk 0:00:03.8]} 36... Bg7 {[%clk 0:00:04.3]} 37. Re1 {[%clk 0:00:03.6]}
37... Qd7 {[%clk 0:00:04.3]} 38. Rf1 {[%clk 0:00:04.2]} 38... f5 {[%clk
0:00:04.1]} 39. Qf4 {[%clk 0:00:02.9]} 39... Re4 {[%clk 0:00:03.9]} 40. Qf3
{[%clk 0:00:02.8]} 40... Kh7 {[%clk 0:00:04.3]} 41. Rd1 {[%clk 0:00:03.1]} 41...
Qe7 {[%clk 0:00:05]} 42. Rf1 {[%clk 0:00:03.6]} 42... h4 {[%clk 0:00:04.9]} 43.
Bf2 {[%clk 0:00:03.3]} 43... Re2 {[%clk 0:00:04.2]} 44. Bg1 {[%clk 0:00:02.6]}
44... Qe4 {[%clk 0:00:04.6]} 45. Qxe4 {[%clk 0:00:01.6]} 45... fxe4 {[%clk
0:00:05.5]} 46. Rf7 {[%clk 0:00:01.5]} 46... Kg8 {[%clk 0:00:05.8]} 47. Re7
{[%clk 0:00:01.3]} 47... Re1 {[%clk 0:00:05.2]} 48. Kh2 {[%clk 0:00:01.3]} 48...
Bf6 {[%clk 0:00:05.5]} 49. Re6 {[%clk 0:00:01.4]} 49... Kf7 {[%clk 0:00:05.7]}
0-1

[Event "Early-Titled-Tuesday-Blitz-March-05-2024"]
[Site "Chess.com"]
[Date "2024.03.05"]
[Round "5"]
[White "ProChessWICTH"]
[Black "Seochesspie"]
[Result "1-0"]
[WhiteElo "2637"]
[BlackElo "2811"]
[TimeControl "180+1"]
[EndTime "8:58:51 PST"]
[Termination "ProChessWICTH won by resignation"]

1. d4 {[%clk 0:03:00.9]} 1... Nf6 {[%clk 0:02:59.9]} 2. c4 {[%clk 0:02:58.1]}
2... e6 {[%clk 0:02:59.5]} 3. Nc3 {[%clk 0:02:58.2]} 3... Bb4 {[%clk 0:02:59.1]}
4. Bg5 {[%clk 0:02:55.8]} 4... h6 {[%clk 0:02:56.5]} 5. Bh4 {[%clk 0:02:52.4]}
5... c5 {[%clk 0:02:56]} 6. e3 {[%clk 0:02:50.6]} 6... Qa5 {[%clk 0:02:53.7]} 7.
Ne2 {[%clk 0:02:45.9]} 7... Ne4 {[%clk 0:02:44.9]} 8. Qc2 {[%clk 0:02:45.8]}
8... f5 {[%clk 0:02:28.6]} 9. d5 {[%clk 0:02:41]} 9... d6 {[%clk 0:02:18.8]} 10.
dxe6 {[%clk 0:02:36.6]} 10... Bxe6 {[%clk 0:02:18.5]} 11. f3 {[%clk 0:02:36.6]}
11... Bxc3+ {[%clk 0:02:12.5]} 12. bxc3 {[%clk 0:02:35.2]} 12... Ng5 {[%clk
0:02:12.6]} 13. Nf4 {[%clk 0:02:33.6]} 13... Bd7 {[%clk 0:02:10.2]} 14. Ng6
{[%clk 0:02:32.2]} 14... Rg8 {[%clk 0:02:10.2]} 15. Bd3 {[%clk 0:02:27.6]} 15...
Nc6 {[%clk 0:02:07.1]} 16. O-O {[%clk 0:02:18.8]} 16... O-O-O {[%clk 0:01:58.2]}
17. Bxf5 {[%clk 0:02:18.8]} 17... Bxf5 {[%clk 0:01:56.1]} 18. Qxf5+ {[%clk
0:02:19.7]} 18... Kb8 {[%clk 0:01:56.9]} 19. f4 {[%clk 0:02:12.4]} 19... Qxc3
{[%clk 0:01:28.1]} 20. fxg5 {[%clk 0:02:10.4]} 20... Qxe3+ {[%clk 0:01:28.2]}
21. Kh1 {[%clk 0:01:50]} 21... Nd4 {[%clk 0:01:21.8]} 22. Qf2 {[%clk 0:01:42.8]}
22... Qxf2 {[%clk 0:01:17.3]} 23. Rxf2 {[%clk 0:01:43.7]} 23... hxg5 {[%clk
0:01:16]} 24. Bxg5 {[%clk 0:01:44.6]} 24... Rde8 {[%clk 0:01:16.3]} 25. Raf1
{[%clk 0:01:38.2]} 25... Re4 {[%clk 0:01:14.9]} 26. Rf8+ {[%clk 0:01:36.7]}
26... Rxf8 {[%clk 0:01:14.9]} 27. Rxf8+ {[%clk 0:01:37.6]} 27... Kc7 {[%clk
0:01:15]} 28. h4 {[%clk 0:01:30.6]} 28... Ne6 {[%clk 0:01:14.7]} 29. Rf7+ {[%clk
0:01:29.6]} 29... Kb6 {[%clk 0:01:13.3]} 30. Nf4 {[%clk 0:01:20.2]} 30... Nxg5
{[%clk 0:01:06.4]} 31. hxg5 {[%clk 0:01:21.1]} 31... Rxc4 {[%clk 0:01:06.5]} 32.
g3 {[%clk 0:01:19.3]} 32... g6 {[%clk 0:00:59.5]} 33. Nxg6 {[%clk 0:01:14]}
33... Rg4 {[%clk 0:00:58.8]} 34. Rf5 {[%clk 0:01:12.6]} 34... Rxg3 {[%clk
0:00:58.3]} 35. Nf4 {[%clk 0:01:10.7]} 35... c4 {[%clk 0:00:54.1]} 36. Kh2
{[%clk 0:01:10.3]} 36... Rg4 {[%clk 0:00:50]} 37. Kh3 {[%clk 0:01:08.2]} 37...
Rg1 {[%clk 0:00:49.7]} 38. Nd5+ {[%clk 0:01:04.4]} 38... Kc6 {[%clk 0:00:47.6]}
39. Kh2 {[%clk 0:00:51.1]} 39... Rg4 {[%clk 0:00:38]} 40. Ne3 {[%clk 0:00:50.7]}
40... Re4 {[%clk 0:00:38.4]} 41. g6 {[%clk 0:00:50.4]} 41... Re8 {[%clk
0:00:22.9]} 42. g7 {[%clk 0:00:39.6]} 42... Rg8 {[%clk 0:00:22.9]} 43. Rf7
{[%clk 0:00:39]} 43... c3 {[%clk 0:00:22.9]} 44. Kg3 {[%clk 0:00:36.3]} 44... d5
{[%clk 0:00:23]} 45. Nf5 {[%clk 0:00:34]} 45... Kb6 {[%clk 0:00:18.1]} 46. Rf8
{[%clk 0:00:31.9]} 46... c2 {[%clk 0:00:16.5]} 47. Rxg8 {[%clk 0:00:24.2]} 47...
c1=Q {[%clk 0:00:16.8]} 48. Rf8 {[%clk 0:00:23]} 48... Qg1+ {[%clk 0:00:14.6]}
49. Kf4 {[%clk 0:00:21.8]} 49... Qf2+ {[%clk 0:00:14.5]} 50. Kg5 {[%clk
0:00:21.6]} 50... Qg1+ {[%clk 0:00:12.5]} 51. Kf6 {[%clk 0:00:20.1]} 51... Qa1+
{[%clk 0:00:13]} 52. Kf7 {[%clk 0:00:19.9]} 52... Qf1 {[%clk 0:00:13.2]} 53. Ke7
{[%clk 0:00:14.5]} 53... Qe2+ {[%clk 0:00:07.1]} 54. Kd8 {[%clk 0:00:14.1]}
54... d4 {[%clk 0:00:06.9]} 55. g8=Q {[%clk 0:00:14]} 55... d3 {[%clk 0:00:07]}
56. Qb3+ {[%clk 0:00:14.1]} 1-0